[Event "*** SCC Grand Prix: Titled Tuesday Blitz"]
[Site "Chess.com"]
[Date "2020.08.25"]
[Round "4"]
[White "Savva09022009"]
[Black "Chessdreamer2020"]
[Result "1-0"]
[WhiteElo "2327"]
[BlackElo "2483"]
[TimeControl "180+1"]
[EndTime "10:41:20 PDT"]
[Termination "Savva09022009 won by checkmate"]

1. e4 {[%clk 0:03:00.9]} 1... d6 {[%clk 0:00:15.8]} 2. d4 {[%clk 0:02:58]} 2...
Nf6 {[%clk 0:00:16.3]} 3. Nc3 {[%clk 0:02:57.9]} 3... e5 {[%clk 0:00:17.2]} 4.
dxe5 {[%clk 0:02:49.9]} 4... dxe5 {[%clk 0:00:18.1]} 5. Qxd8+ {[%clk 0:02:50.1]}
5... Kxd8 {[%clk 0:00:18.3]} 6. f3 {[%clk 0:02:50.4]} 6... Be6 {[%clk
0:00:17.3]} 7. Be3 {[%clk 0:02:50.6]} 7... Nbd7 {[%clk 0:00:15.9]} 8. O-O-O
{[%clk 0:02:51.1]} 8... c6 {[%clk 0:00:16.4]} 9. Nge2 {[%clk 0:02:47.6]} 9...
Kc7 {[%clk 0:00:14.4]} 10. g3 {[%clk 0:02:47]} 10... Bc5 {[%clk 0:00:13.5]} 11.
Bxc5 {[%clk 0:02:44.4]} 11... Nxc5 {[%clk 0:00:14.4]} 12. Bg2 {[%clk 0:02:44.7]}
12... Nfd7 {[%clk 0:00:14.3]} 13. f4 {[%clk 0:02:44.2]} 13... f6 {[%clk
0:00:14.7]} 14. a3 {[%clk 0:02:40.5]} 14... b5 {[%clk 0:00:13.8]} 15. Rd2 {[%clk
0:02:40.1]} 15... a5 {[%clk 0:00:13.2]} 16. Nb1 {[%clk 0:02:17.2]} 16... b4
{[%clk 0:00:13.1]} 17. Rhd1 {[%clk 0:02:17]} 17... bxa3 {[%clk 0:00:12.8]} 18.
Nxa3 {[%clk 0:02:16.3]} 18... Rhb8 {[%clk 0:00:13.1]} 19. Nc3 {[%clk 0:02:14.7]}
19... Rb4 {[%clk 0:00:12.1]} 20. Rd6 {[%clk 0:01:44.3]} 20... Bg4 {[%clk
0:00:10.5]} 21. R1d2 {[%clk 0:01:38.1]} 21... Rab8 {[%clk 0:00:10.5]} 22. b3
{[%clk 0:01:35.1]} 22... a4 {[%clk 0:00:10.1]} 23. bxa4 {[%clk 0:01:35.1]} 23...
Nxa4 {[%clk 0:00:10.1]} 24. Nab1 {[%clk 0:01:24.9]} 24... Nxc3 {[%clk
0:00:07.9]} 25. Nxc3 {[%clk 0:01:25.5]} 25... Nc5 {[%clk 0:00:08.2]} 26. h3
{[%clk 0:01:20.7]} 26... Bh5 {[%clk 0:00:06.3]} 27. fxe5 {[%clk 0:01:18]} 27...
fxe5 {[%clk 0:00:05.6]} 28. g4 {[%clk 0:01:16.9]} 28... Bg6 {[%clk 0:00:05.6]}
29. Kd1 {[%clk 0:01:13.1]} 29... Nxe4 {[%clk 0:00:05.6]} 30. Nxe4 {[%clk
0:01:13.1]} 30... Bxe4 {[%clk 0:00:06.5]} 31. Rd7+ {[%clk 0:01:13.1]} 31... Kb6
{[%clk 0:00:05.4]} 32. Bxe4 {[%clk 0:01:10.8]} 32... Rxe4 {[%clk 0:00:06.3]} 33.
Rxg7 {[%clk 0:01:10.9]} 33... h5 {[%clk 0:00:06]} 34. g5 {[%clk 0:01:06.2]}
34... Rh4 {[%clk 0:00:06.9]} 35. Rd3 {[%clk 0:01:05.2]} 35... Rxh3 {[%clk
0:00:07.8]} 36. Rxh3 {[%clk 0:01:04.6]} 36... Rd8+ {[%clk 0:00:08.4]} 37. Ke2
{[%clk 0:01:04.4]} 37... e4 {[%clk 0:00:09.2]} 38. g6 {[%clk 0:01:03.1]} 38...
Rd6 {[%clk 0:00:09]} 39. Rxh5 {[%clk 0:01:02.1]} 39... Rf6 {[%clk 0:00:09.2]}
40. Rg5 {[%clk 0:01:01.9]} 40... e3 {[%clk 0:00:09.6]} 41. Kxe3 {[%clk
0:01:02.1]} 41... Re6+ {[%clk 0:00:10.2]} 42. Kf4 {[%clk 0:01:02.5]} 42... Rf6+
{[%clk 0:00:10.5]} 43. Rf5 {[%clk 0:01:03]} 43... Rd6 {[%clk 0:00:10.3]} 44. Kg5
{[%clk 0:01:00.6]} 44... Rd2 {[%clk 0:00:10.8]} 45. Rf4 {[%clk 0:01:00.4]} 45...
Rxc2 {[%clk 0:00:10.5]} 46. Rgf7 {[%clk 0:00:59.9]} 46... Rg2+ {[%clk
0:00:10.3]} 47. Kf5 {[%clk 0:00:59.8]} 47... Rd2 {[%clk 0:00:10.9]} 48. g7
{[%clk 0:00:59.9]} 48... Rd5+ {[%clk 0:00:11.2]} 49. Kf6 {[%clk 0:00:59.9]}
49... Rd8 {[%clk 0:00:11.7]} 50. Rf8 {[%clk 0:00:59.5]} 50... Rd6+ {[%clk
0:00:12.4]} 51. Kf5 {[%clk 0:00:58.2]} 51... Rd5+ {[%clk 0:00:12.7]} 52. Kg4
{[%clk 0:00:58.3]} 52... Rd1 {[%clk 0:00:12.4]} 53. g8=Q {[%clk 0:00:58.2]}
53... Rg1+ {[%clk 0:00:13]} 54. Kf5 {[%clk 0:00:58.9]} 54... Rxg8 {[%clk
0:00:13.7]} 55. Rxg8 {[%clk 0:00:59.6]} 55... Kc5 {[%clk 0:00:14.2]} 56. Rc8
{[%clk 0:00:59.4]} 56... Kd6 {[%clk 0:00:14.3]} 57. Ke4 {[%clk 0:00:59.5]} 57...
Kd7 {[%clk 0:00:14.5]} 58. Rff8 {[%clk 0:00:58.1]} 58... Kd6 {[%clk 0:00:14.8]}
59. Kd4 {[%clk 0:00:58.6]} 59... Ke6 {[%clk 0:00:14.4]} 60. Rfd8 {[%clk
0:00:58.7]} 60... Ke7 {[%clk 0:00:14.5]} 61. Kc5 {[%clk 0:00:59.4]} 61... Ke6
{[%clk 0:00:14.4]} 62. Kxc6 {[%clk 0:01:00.1]} 62... Ke5 {[%clk 0:00:14]} 63.
Re8+ {[%clk 0:01:00.4]} 63... Kd4 {[%clk 0:00:13.4]} 64. Rcd8+ {[%clk
0:00:59.5]} 64... Kc4 {[%clk 0:00:13.7]} 65. Re4+ {[%clk 0:00:59.8]} 65... Kc3
{[%clk 0:00:14.2]} 66. Rh8 {[%clk 0:00:57.3]} 66... Kd3 {[%clk 0:00:14]} 67. Ra4
{[%clk 0:00:57.8]} 67... Kc3 {[%clk 0:00:13.9]} 68. Rh3+ {[%clk 0:00:58.3]}
68... Kb2 {[%clk 0:00:13.5]} 69. Rg4 {[%clk 0:00:58.8]} 69... Kc2 {[%clk
0:00:13.9]} 70. Rg2+ {[%clk 0:00:59.2]} 70... Kd1 {[%clk 0:00:14.7]} 71. Rh1#
{[%clk 0:01:00]} 1-0

[Event "*** SCC Grand Prix: Titled Tuesday Blitz"]
[Site "Chess.com"]
[Date "2020.08.25"]
[Round "4"]
[White "Man-Chuk"]
[Black "attack2mateU"]
[Result "0-1"]
[WhiteElo "2813"]
[BlackElo "2707"]
[TimeControl "180+1"]
[EndTime "10:41:21 PDT"]
[Termination "attack2mateU won by checkmate"]

1. c4 {[%clk 0:03:00]} 1... g6 {[%clk 0:02:59.8]} 2. Nc3 {[%clk 0:02:58.8]} 2...
c5 {[%clk 0:02:58]} 3. g3 {[%clk 0:02:56.4]} 3... Bg7 {[%clk 0:02:57.6]} 4. Bg2
{[%clk 0:02:56.5]} 4... Nc6 {[%clk 0:02:57.8]} 5. d3 {[%clk 0:02:56.1]} 5... d6
{[%clk 0:02:46.5]} 6. h4 {[%clk 0:02:50.5]} 6... Nf6 {[%clk 0:02:43.2]} 7. Qd2
{[%clk 0:02:49.9]} 7... Bd7 {[%clk 0:02:17.1]} 8. b3 {[%clk 0:02:48.9]} 8... Rb8
{[%clk 0:02:17.3]} 9. Bb2 {[%clk 0:02:48.3]} 9... a6 {[%clk 0:02:11.8]} 10. Nd5
{[%clk 0:02:45.9]} 10... e6 {[%clk 0:02:11.8]} 11. Nxf6+ {[%clk 0:02:37.5]}
11... Bxf6 {[%clk 0:02:12.7]} 12. h5 {[%clk 0:02:37.4]} 12... g5 {[%clk
0:02:00.2]} 13. h6 {[%clk 0:02:26.6]} 13... b5 {[%clk 0:01:58.7]} 14. Nf3 {[%clk
0:02:09.3]} 14... g4 {[%clk 0:01:55]} 15. Nh2 {[%clk 0:02:00.5]} 15... bxc4
{[%clk 0:01:39.7]} 16. Nxg4 {[%clk 0:01:48.9]} 16... Bxb2 {[%clk 0:01:38.1]} 17.
Qxb2 {[%clk 0:01:49]} 17... Qa5+ {[%clk 0:01:38.8]} 18. Kf1 {[%clk 0:01:26.6]}
18... c3 {[%clk 0:01:38.9]} 19. Qc1 {[%clk 0:01:26.4]} 19... Kd8 {[%clk
0:01:07.8]} 20. Nf6 {[%clk 0:01:15.9]} 20... Kc7 {[%clk 0:00:50.6]} 21. Nxd7
{[%clk 0:01:04.1]} 21... Kxd7 {[%clk 0:00:51.5]} 22. Bxc6+ {[%clk 0:01:04.7]}
22... Kxc6 {[%clk 0:00:51.5]} 23. Rh4 {[%clk 0:01:05.4]} 23... Rhg8 {[%clk
0:00:13.7]} 24. Ra4 {[%clk 0:01:04.5]} 24... Qb6 {[%clk 0:00:07.2]} 25. Qxc3
{[%clk 0:01:03.8]} 25... Rg6 {[%clk 0:00:07.9]} 26. Qc4 {[%clk 0:00:58.4]} 26...
Kd7 {[%clk 0:00:05.4]} 27. Rxa6 {[%clk 0:00:42.7]} 27... Qb7 {[%clk 0:00:05.8]}
28. Qa4+ {[%clk 0:00:43.1]} 28... Kd8 {[%clk 0:00:06]} 29. e4 {[%clk 0:00:38.7]}
29... Rxh6 {[%clk 0:00:02.5]} 30. Kg2 {[%clk 0:00:35.1]} 30... Qb5 {[%clk
0:00:01.7]} 31. Rxd6+ {[%clk 0:00:28.5]} 31... Ke7 {[%clk 0:00:01.7]} 32. Qxb5
{[%clk 0:00:27.7]} 32... Rxb5 {[%clk 0:00:02.6]} 33. Ra6 {[%clk 0:00:27.8]}
33... Rb4 {[%clk 0:00:02.4]} 34. Rc1 {[%clk 0:00:25.1]} 34... Rd4 {[%clk
0:00:02.7]} 35. Rxc5 {[%clk 0:00:20.8]} 35... Rxd3 {[%clk 0:00:03.1]} 36. Rc7+
{[%clk 0:00:21]} 36... Kf8 {[%clk 0:00:03.6]} 37. Raa7 {[%clk 0:00:11.9]} 37...
Rf6 {[%clk 0:00:03.7]} 38. f4 {[%clk 0:00:11.9]} 38... h5 {[%clk 0:00:03.6]} 39.
Kf2 {[%clk 0:00:10.9]} 39... h4 {[%clk 0:00:03]} 40. gxh4 {[%clk 0:00:10.1]}
40... Rxf4+ {[%clk 0:00:03.3]} 41. Ke2 {[%clk 0:00:09.5]} 41... Rh3 {[%clk
0:00:03.9]} 42. e5 {[%clk 0:00:06.8]} 42... Rhxh4 {[%clk 0:00:03.3]} 43. Ke3
{[%clk 0:00:07]} 43... Rf5 {[%clk 0:00:03.1]} 44. Rc5 {[%clk 0:00:06.9]} 44...
Rh3+ {[%clk 0:00:03.1]} 45. Kd4 {[%clk 0:00:06.4]} 45... Rf4# {[%clk 0:00:03.4]}
0-1

[Event "*** SCC Grand Prix: Titled Tuesday Blitz"]
[Site "Chess.com"]
[Date "2020.08.25"]
[Round "4"]
[White "zmeeed67"]
[Black "The_Machine04"]
[Result "1-0"]
[WhiteElo "2454"]
[BlackElo "2284"]
[TimeControl "180+1"]
[EndTime "10:41:21 PDT"]
[Termination "zmeeed67 won on time"]

1. e4 {[%clk 0:03:00.9]} 1... d6 {[%clk 0:02:58.8]} 2. d4 {[%clk 0:03:00.1]}
2... Nf6 {[%clk 0:02:59.1]} 3. Nc3 {[%clk 0:03:00.1]} 3... e5 {[%clk 0:02:59.7]}
4. Nf3 {[%clk 0:02:58]} 4... Nbd7 {[%clk 0:02:59.2]} 5. g4 {[%clk 0:02:57.6]}
5... d5 {[%clk 0:02:56.4]} 6. dxe5 {[%clk 0:02:51.7]} 6... Nxe4 {[%clk
0:02:55.4]} 7. Nxd5 {[%clk 0:02:45.9]} 7... Nb6 {[%clk 0:02:53.7]} 8. Ne3 {[%clk
0:02:25.6]} 8... Qxd1+ {[%clk 0:02:52.5]} 9. Nxd1 {[%clk 0:02:24.6]} 9... Bxg4
{[%clk 0:02:49.2]} 10. Be2 {[%clk 0:02:24]} 10... O-O-O {[%clk 0:02:33.9]} 11.
Be3 {[%clk 0:02:18.1]} 11... Be6 {[%clk 0:02:21.7]} 12. Nd4 {[%clk 0:01:35.5]}
12... Bc4 {[%clk 0:01:56.1]} 13. f3 {[%clk 0:01:32.4]} 13... Nc5 {[%clk
0:01:47.2]} 14. b3 {[%clk 0:01:18.7]} 14... Bxe2 {[%clk 0:01:37.1]} 15. Kxe2
{[%clk 0:01:18.8]} 15... Nd5 {[%clk 0:01:37.3]} 16. Bf2 {[%clk 0:01:12.8]} 16...
Nf4+ {[%clk 0:01:32.9]} 17. Kf1 {[%clk 0:01:08.8]} 17... Nce6 {[%clk 0:01:02]}
18. Nxe6 {[%clk 0:01:00.3]} 18... Nxe6 {[%clk 0:01:02.9]} 19. c3 {[%clk
0:00:31.4]} 19... g6 {[%clk 0:00:35.2]} 20. Be3 {[%clk 0:00:30]} 20... Bc5
{[%clk 0:00:24.6]} 21. Ke2 {[%clk 0:00:28.8]} 21... Bxe3 {[%clk 0:00:19.3]} 22.
Kxe3 {[%clk 0:00:25.3]} 22... Rd5 {[%clk 0:00:17.3]} 23. f4 {[%clk 0:00:23.6]}
23... Rhd8 {[%clk 0:00:17.3]} 24. Nf2 {[%clk 0:00:23.9]} 24... h5 {[%clk
0:00:10.5]} 25. Rad1 {[%clk 0:00:24.2]} 25... c6 {[%clk 0:00:09.9]} 26. Rxd5
{[%clk 0:00:23.9]} 26... Rxd5 {[%clk 0:00:10.8]} 27. Rd1 {[%clk 0:00:23.2]}
27... Rxd1 {[%clk 0:00:10.1]} 28. Nxd1 {[%clk 0:00:23.1]} 28... Kd7 {[%clk
0:00:10.6]} 29. Nf2 {[%clk 0:00:21.8]} 29... Nc5 {[%clk 0:00:08.6]} 30. Nh3
{[%clk 0:00:19.4]} 30... Ke7 {[%clk 0:00:07]} 31. Ng5 {[%clk 0:00:18]} 31... Ne6
{[%clk 0:00:06.2]} 32. Ne4 {[%clk 0:00:17.6]} 32... b6 {[%clk 0:00:03.7]} 33. h3
{[%clk 0:00:15.6]} 33... Ng7 {[%clk 0:00:03.7]} 34. Nd6 {[%clk 0:00:14.1]} 34...
Ke6 {[%clk 0:00:03.9]} 35. Nc8 {[%clk 0:00:13.3]} 35... Nf5+ {[%clk 0:00:03.9]}
36. Kf3 {[%clk 0:00:12.7]} 36... b5 {[%clk 0:00:02.5]} 37. Nxa7 {[%clk
0:00:12.3]} 37... Ne7 {[%clk 0:00:02.8]} 38. c4 {[%clk 0:00:10.8]} 38... b4
{[%clk 0:00:02.6]} 39. Ke4 {[%clk 0:00:08.8]} 39... Kd7 {[%clk 0:00:02.4]} 40.
Kd4 {[%clk 0:00:08.3]} 40... Kc7 {[%clk 0:00:02]} 41. Kc5 {[%clk 0:00:03.4]}
41... Kb7 {[%clk 0:00:00.8]} 42. Nxc6 {[%clk 0:00:01.5]} 1-0

[Event "*** SCC Grand Prix: Titled Tuesday Blitz"]
[Site "Chess.com"]
[Date "2020.08.25"]
[Round "4"]
[White "tan275"]
[Black "SerGo055"]
[Result "1-0"]
[WhiteElo "2203"]
[BlackElo "2471"]
[TimeControl "180+1"]
[EndTime "10:41:22 PDT"]
[Termination "tan275 won on time"]

1. d4 {[%clk 0:03:00.9]} 1... Nf6 {[%clk 0:02:58]} 2. c4 {[%clk 0:03:00.4]} 2...
e6 {[%clk 0:02:57.9]} 3. g3 {[%clk 0:02:59.3]} 3... Bb4+ {[%clk 0:02:56.2]} 4.
Bd2 {[%clk 0:02:57.8]} 4... Be7 {[%clk 0:02:55.7]} 5. Nf3 {[%clk 0:02:56.6]}
5... d5 {[%clk 0:02:55.7]} 6. Bg2 {[%clk 0:02:56.6]} 6... O-O {[%clk 0:02:55]}
7. O-O {[%clk 0:02:55.4]} 7... c6 {[%clk 0:02:54.3]} 8. Qc2 {[%clk 0:02:53.2]}
8... b6 {[%clk 0:02:54]} 9. Rd1 {[%clk 0:02:50.9]} 9... Ba6 {[%clk 0:02:52.5]}
10. b3 {[%clk 0:02:50]} 10... Nbd7 {[%clk 0:02:51.9]} 11. a4 {[%clk 0:02:46.3]}
11... Rc8 {[%clk 0:02:50.7]} 12. Bc1 {[%clk 0:02:41.5]} 12... c5 {[%clk
0:02:47.6]} 13. Ba3 {[%clk 0:02:22.5]} 13... cxd4 {[%clk 0:02:45.8]} 14. Nxd4
{[%clk 0:02:18.6]} 14... Bxa3 {[%clk 0:02:41.4]} 15. Nxa3 {[%clk 0:02:16.1]}
15... Qe7 {[%clk 0:02:41.9]} 16. Nab5 {[%clk 0:02:03.5]} 16... Ne5 {[%clk
0:02:41.6]} 17. f4 {[%clk 0:01:45.1]} 17... Neg4 {[%clk 0:02:39.4]} 18. Qd3
{[%clk 0:01:42.4]} 18... dxc4 {[%clk 0:02:34.2]} 19. bxc4 {[%clk 0:01:39.7]}
19... Qc5 {[%clk 0:02:29.4]} 20. h3 {[%clk 0:01:35.9]} 20... Nh6 {[%clk
0:02:25.9]} 21. Kh2 {[%clk 0:01:07.5]} 21... Qxc4 {[%clk 0:01:19.2]} 22. Qxc4
{[%clk 0:01:04.4]} 22... Rxc4 {[%clk 0:01:20.1]} 23. Nxa7 {[%clk 0:00:59.7]}
23... Nf5 {[%clk 0:01:06.9]} 24. Nxf5 {[%clk 0:00:55.1]} 24... exf5 {[%clk
0:01:07.8]} 25. Nc6 {[%clk 0:00:50.7]} 25... g6 {[%clk 0:01:02]} 26. Ra2 {[%clk
0:00:43]} 26... Ne4 {[%clk 0:00:57]} 27. Ne5 {[%clk 0:00:34.6]} 27... Rb4 {[%clk
0:00:51.5]} 28. Nd7 {[%clk 0:00:33.6]} 28... Nc3 {[%clk 0:00:36.7]} 29. Nxf8
{[%clk 0:00:29.8]} 29... Nxd1 {[%clk 0:00:34.4]} 30. Nd7 {[%clk 0:00:23.1]}
30... Nc3 {[%clk 0:00:33.4]} 31. Rd2 {[%clk 0:00:19.1]} 31... Nxa4 {[%clk
0:00:18.4]} 32. Ne5 {[%clk 0:00:18.6]} 32... Nc5 {[%clk 0:00:16]} 33. Bd5 {[%clk
0:00:16.6]} 33... Ne4 {[%clk 0:00:13]} 34. Bxf7+ {[%clk 0:00:15]} 34... Kg7
{[%clk 0:00:12.8]} 35. Rc2 {[%clk 0:00:15.4]} 35... Rd4 {[%clk 0:00:05.7]} 36.
Rc7 {[%clk 0:00:15.2]} 36... Kf6 {[%clk 0:00:02.8]} 37. Bb3 {[%clk 0:00:13.2]}
37... Nd6 {[%clk 0:00:03.1]} 38. Rc6 {[%clk 0:00:11.2]} 38... Ke7 {[%clk
0:00:02.7]} 39. Rc7+ {[%clk 0:00:10.8]} 39... Kd8 {[%clk 0:00:02.2]} 40. Rd7+
{[%clk 0:00:10.8]} 40... Kc8 {[%clk 0:00:02.8]} 41. Be6 {[%clk 0:00:10.2]} 41...
Kb8 {[%clk 0:00:02]} 42. Nc6+ {[%clk 0:00:10.4]} 42... Ka8 {[%clk 0:00:02.1]}
43. Nxd4 {[%clk 0:00:11.3]} 43... Nb5 {[%clk 0:00:01.3]} 44. Bd5+ {[%clk
0:00:11.2]} 1-0

[Event "*** SCC Grand Prix: Titled Tuesday Blitz"]
[Site "Chess.com"]
[Date "2020.08.25"]
[Round "4"]
[White "evgenyermolaev"]
[Black "Srisshhhtea"]
[Result "1-0"]
[WhiteElo "2479"]
[BlackElo "2295"]
[TimeControl "180+1"]
[EndTime "10:41:26 PDT"]
[Termination "evgenyermolaev won by resignation"]

1. d4 {[%clk 0:03:00.9]} 1... Nf6 {[%clk 0:02:59.8]} 2. Nc3 {[%clk 0:02:59.5]}
2... d5 {[%clk 0:02:58.8]} 3. Bf4 {[%clk 0:02:58]} 3... Bf5 {[%clk 0:02:44.4]}
4. Nf3 {[%clk 0:02:56.1]} 4... e6 {[%clk 0:02:39.1]} 5. e3 {[%clk 0:02:53.7]}
5... h6 {[%clk 0:02:36.8]} 6. Ne5 {[%clk 0:02:45.9]} 6... Bd6 {[%clk 0:02:32.8]}
7. g4 {[%clk 0:02:40.3]} 7... Bh7 {[%clk 0:02:31]} 8. h4 {[%clk 0:02:36.6]} 8...
Ne4 {[%clk 0:02:03.1]} 9. Nxe4 {[%clk 0:02:25.3]} 9... Bxe4 {[%clk 0:02:04]} 10.
f3 {[%clk 0:02:24.8]} 10... Bh7 {[%clk 0:01:58.9]} 11. Bd3 {[%clk 0:02:19.2]}
11... Bxd3 {[%clk 0:01:56.5]} 12. Qxd3 {[%clk 0:02:15.4]} 12... Nd7 {[%clk
0:01:54.4]} 13. O-O-O {[%clk 0:02:02.8]} 13... Bxe5 {[%clk 0:01:41.1]} 14. dxe5
{[%clk 0:01:54.4]} 14... Qe7 {[%clk 0:01:39.6]} 15. e4 {[%clk 0:01:16.5]} 15...
Nb6 {[%clk 0:01:24.5]} 16. Bg3 {[%clk 0:01:03.8]} 16... O-O-O {[%clk 0:01:23.1]}
17. Qe2 {[%clk 0:00:55.1]} 17... Qb4 {[%clk 0:01:15.7]} 18. c3 {[%clk
0:00:44.1]} 18... Qa4 {[%clk 0:01:12.6]} 19. b3 {[%clk 0:00:28]} 19... Qa3+
{[%clk 0:01:11.4]} 20. Kb1 {[%clk 0:00:23.2]} 20... dxe4 {[%clk 0:01:09.1]} 21.
Qxe4 {[%clk 0:00:21.8]} 21... Nd5 {[%clk 0:01:06.1]} 22. Rc1 {[%clk 0:00:17.8]}
22... Kb8 {[%clk 0:00:57.3]} 23. f4 {[%clk 0:00:17]} 23... Rd7 {[%clk
0:00:28.4]} 24. Bf2 {[%clk 0:00:16.2]} 24... Rhd8 {[%clk 0:00:26.2]} 25. Qc4
{[%clk 0:00:16.1]} 25... Nxf4 {[%clk 0:00:15]} 26. Bc5 {[%clk 0:00:13.4]} 26...
Qa5 {[%clk 0:00:11.2]} 27. Bb4 {[%clk 0:00:13.7]} 27... Qxe5 {[%clk 0:00:10]}
28. Rce1 {[%clk 0:00:10]} 28... Qf6 {[%clk 0:00:09.2]} 29. Rhf1 {[%clk
0:00:10.5]} 29... Qg6+ {[%clk 0:00:09]} 30. Ka1 {[%clk 0:00:09.5]} 30... Nd3
{[%clk 0:00:09.1]} 31. Rb1 {[%clk 0:00:06.3]} 31... Nxb4 {[%clk 0:00:08.9]} 32.
Qxb4 {[%clk 0:00:07.2]} 32... Rd6 {[%clk 0:00:08.5]} 33. h5 {[%clk 0:00:08.1]}
33... Qxg4 {[%clk 0:00:07]} 34. Qxg4 {[%clk 0:00:07.6]} 34... g5 {[%clk
0:00:05.5]} 35. Rxf7 {[%clk 0:00:06.9]} 35... Rd5 {[%clk 0:00:04.1]} 36. Qf3
{[%clk 0:00:06.6]} 36... e5 {[%clk 0:00:05]} 37. Rf8 {[%clk 0:00:06.9]} 37... e4
{[%clk 0:00:05.9]} 38. Qxe4 {[%clk 0:00:05.9]} 38... Rd2 {[%clk 0:00:03.7]} 39.
Rxd8+ {[%clk 0:00:05.3]} 39... Rxd8 {[%clk 0:00:04.6]} 40. Qe6 {[%clk
0:00:05.7]} 40... Rc8 {[%clk 0:00:04.6]} 41. Qxh6 {[%clk 0:00:05.5]} 41... c6
{[%clk 0:00:05.5]} 42. Qg7 {[%clk 0:00:06.2]} 42... a6 {[%clk 0:00:06.4]} 43. h6
{[%clk 0:00:06.6]} 43... Rd8 {[%clk 0:00:07.3]} 44. h7 {[%clk 0:00:07.5]} 44...
Rc8 {[%clk 0:00:07.7]} 45. h8=Q {[%clk 0:00:08.4]} 45... Rd8 {[%clk 0:00:08.6]}
46. Qxd8+ {[%clk 0:00:08.1]} 46... Ka7 {[%clk 0:00:08.8]} 47. Qdc7 {[%clk
0:00:08.6]} 1-0

[Event "*** SCC Grand Prix: Titled Tuesday Blitz"]
[Site "Chess.com"]
[Date "2020.08.25"]
[Round "4"]
[White "SavelievAlexei"]
[Black "GAusal"]
[Result "1-0"]
[WhiteElo "2404"]
[BlackElo "2158"]
[TimeControl "180+1"]
[EndTime "10:41:26 PDT"]
[Termination "SavelievAlexei won by checkmate"]

1. e4 {[%clk 0:02:32.9]} 1... e5 {[%clk 0:02:57.4]} 2. Nf3 {[%clk 0:02:23.8]}
2... Nc6 {[%clk 0:02:57.7]} 3. Bc4 {[%clk 0:02:20.9]} 3... Nd4 {[%clk
0:02:57.6]} 4. Nxe5 {[%clk 0:02:20.3]} 4... Qg5 {[%clk 0:02:55.5]} 5. Bxf7+
{[%clk 0:01:44]} 5... Kd8 {[%clk 0:02:46.4]} 6. Ng4 {[%clk 0:01:37.2]} 6... Nh6
{[%clk 0:02:39.9]} 7. c3 {[%clk 0:01:20.6]} 7... Nc2+ {[%clk 0:02:20.7]} 8. Qxc2
{[%clk 0:01:19.4]} 8... Qxg4 {[%clk 0:02:15.8]} 9. Bc4 {[%clk 0:01:14.6]} 9...
Qxg2 {[%clk 0:02:12.1]} 10. Rf1 {[%clk 0:01:14.6]} 10... Ng4 {[%clk 0:02:07.7]}
11. d4 {[%clk 0:00:35.2]} 11... Be7 {[%clk 0:02:03]} 12. Bf4 {[%clk 0:00:33.5]}
12... Rf8 {[%clk 0:01:54.4]} 13. Bg3 {[%clk 0:00:33.2]} 13... Ne3 {[%clk
0:01:45.9]} 14. Qd2 {[%clk 0:00:03]} 14... Nxf1 {[%clk 0:01:43.4]} 15. Bxf1
{[%clk 0:00:03.9]} 15... Qf3 {[%clk 0:01:43.3]} 16. Bd3 {[%clk 0:00:02.2]} 16...
Qf7 {[%clk 0:01:41.8]} 17. Na3 {[%clk 0:00:02.1]} 17... d6 {[%clk 0:01:41.8]}
18. Nc4 {[%clk 0:00:02.3]} 18... Bd7 {[%clk 0:01:41.5]} 19. O-O-O {[%clk
0:00:02.4]} 19... Kc8 {[%clk 0:01:40.4]} 20. e5 {[%clk 0:00:02.9]} 20... d5
{[%clk 0:01:40.1]} 21. Ne3 {[%clk 0:00:02.9]} 21... Be6 {[%clk 0:01:40.1]} 22.
c4 {[%clk 0:00:03.3]} 22... c6 {[%clk 0:01:40.3]} 23. c5 {[%clk 0:00:03.4]}
23... Bg5 {[%clk 0:01:39.3]} 24. b4 {[%clk 0:00:04.3]} 24... Bxe3 {[%clk
0:01:38.7]} 25. Qxe3 {[%clk 0:00:05.2]} 25... a6 {[%clk 0:01:38.4]} 26. a4
{[%clk 0:00:05.4]} 26... Bf5 {[%clk 0:01:35.8]} 27. Be2 {[%clk 0:00:05.2]} 27...
Be4 {[%clk 0:01:33.5]} 28. Kb2 {[%clk 0:00:05.3]} 28... Bf3 {[%clk 0:01:33.1]}
29. Rd2 {[%clk 0:00:05.5]} 29... Bxe2 {[%clk 0:01:32.9]} 30. Rxe2 {[%clk
0:00:06.4]} 30... Qf3 {[%clk 0:01:32.9]} 31. e6 {[%clk 0:00:06.4]} 31... Qxe3
{[%clk 0:01:31.8]} 32. Rxe3 {[%clk 0:00:07.3]} 32... Re8 {[%clk 0:01:32]} 33. e7
{[%clk 0:00:07.5]} 33... Kd7 {[%clk 0:01:29.9]} 34. Bd6 {[%clk 0:00:08.4]} 34...
g6 {[%clk 0:01:22.2]} 35. f4 {[%clk 0:00:08.5]} 35... a5 {[%clk 0:01:14.8]} 36.
b5 {[%clk 0:00:08.5]} 36... cxb5 {[%clk 0:01:11.7]} 37. axb5 {[%clk 0:00:09.4]}
37... b6 {[%clk 0:01:11.7]} 38. Ka3 {[%clk 0:00:08.3]} 38... bxc5 {[%clk
0:01:11.4]} 39. dxc5 {[%clk 0:00:09.2]} 39... Rac8 {[%clk 0:01:11]} 40. Ka4
{[%clk 0:00:09]} 40... Ra8 {[%clk 0:01:07.4]} 41. Re5 {[%clk 0:00:09.2]} 41...
Rac8 {[%clk 0:00:58.3]} 42. Rxd5 {[%clk 0:00:08.8]} 42... Ra8 {[%clk 0:00:55.2]}
43. Rd4 {[%clk 0:00:07.5]} 43... Rxe7 {[%clk 0:00:51.3]} 44. Bxe7+ {[%clk
0:00:07.4]} 44... Kxe7 {[%clk 0:00:51.9]} 45. c6 {[%clk 0:00:08]} 45... Rc8
{[%clk 0:00:45.7]} 46. Kxa5 {[%clk 0:00:07.9]} 46... Ra8+ {[%clk 0:00:44]} 47.
Kb4 {[%clk 0:00:07.9]} 47... Ra1 {[%clk 0:00:39.7]} 48. Kc5 {[%clk 0:00:08.2]}
48... Rc1+ {[%clk 0:00:39.6]} 49. Rc4 {[%clk 0:00:08.9]} 49... Rb1 {[%clk
0:00:38]} 50. b6 {[%clk 0:00:09]} 50... Kd8 {[%clk 0:00:37.9]} 51. b7 {[%clk
0:00:07.2]} 51... Kc7 {[%clk 0:00:37.3]} 52. Rb4 {[%clk 0:00:06.8]} 52... Rc1+
{[%clk 0:00:36.7]} 53. Kd5 {[%clk 0:00:06.8]} 53... Rd1+ {[%clk 0:00:36.3]} 54.
Ke6 {[%clk 0:00:07]} 54... Rd6+ {[%clk 0:00:33.2]} 55. Ke7 {[%clk 0:00:05.7]}
55... Rxc6 {[%clk 0:00:26.8]} 56. b8=Q# {[%clk 0:00:05.7]} 1-0